[Event "Esbjerg Efterår 2024 - Esbjergmesterskabet"]
[Site "Esbjerg, Denmark"]
[Date "2024.10.18"]
[Round "2.7"]
[White "Rossen, Claus"]
[Black "Hansen, Joshua Kehlet"]
[Result "1/2-1/2"]
[TimeControl "1.-3. 20 min + 5 sek, 4.-7. 90 min + 30 sek + 15 min efter 40 træk"]
[WhiteElo "2072"]
[BlackElo "1819"]

1. e4 {[%clk 00:20:09]} e6 {[%clk 00:20:08]} {[%emt 00:00:03]} 2. d4 {[%clk
00:20:07]} {[%emt 00:00:06]} d5 {[%clk 00:20:12]} {[%emt 00:00:02]} 3. Nc3
{[%clk 00:20:06]} {[%emt 00:00:06]} Bb4 {[%clk 00:20:06]} {[%emt 00:00:11]} 4.
a3 {[%clk 00:20:06]} {[%emt 00:00:05]} Bxc3+ {[%clk 00:20:02]} {[%emt
00:00:09]} 5. bxc3 {[%clk 00:20:08]} {[%emt 00:00:03]} dxe4 {[%clk 00:20:00]}
{[%emt 00:00:06]} 6. Qg4 {[%clk 00:20:09]} {[%emt 00:00:04]} Nf6 {[%clk
00:19:16]} {[%emt 00:00:49]} 7. Qxg7 {[%clk 00:20:05]} {[%emt 00:00:08]} Rg8
{[%clk 00:19:20]} {[%emt 00:00:02]} 8. Qh6 {[%clk 00:20:08]} {[%emt 00:00:02]}
c5 {[%clk 00:17:58]} {[%emt 00:01:28]} 9. Ne2 {[%clk 00:20:04]} {[%emt
00:00:08]} Nc6 {[%clk 00:16:25]} {[%emt 00:01:38]} 10. Bb2 {[%clk 00:19:59]}
{[%emt 00:00:10]} Rg6 {[%clk 00:16:12]} {[%emt 00:00:19]} 11. Qd2 {[%clk
00:19:39]} {[%emt 00:00:25]} Nd5 {[%clk 00:15:25]} {[%emt 00:00:52]} 12. c4
{[%clk 00:18:45]} {[%emt 00:00:58]} Nb6 {[%clk 00:15:28]} {[%emt 00:00:02]} 13.
Nf4 {[%clk 00:18:16]} {[%emt 00:00:33]} Rg8 {[%clk 00:12:55]} {[%emt 00:02:39]}
14. d5 {[%clk 00:17:42]} {[%emt 00:00:40]} e5 {[%clk 00:10:43]} {[%emt
00:02:17]} 15. dxc6 {[%clk 00:13:58]} {[%emt 00:03:48]} Qxd2+ {[%clk 00:10:43]}
{[%emt 00:00:05]} 16. Kxd2 {[%clk 00:14:00]} {[%emt 00:00:03]} exf4 {[%clk
00:10:47]} {[%emt 00:00:02]} 17. cxb7 {[%clk 00:14:01]} {[%emt 00:00:04]} Bxb7
{[%clk 00:10:51]} {[%emt 00:00:02]} 18. Be5 {[%clk 00:14:05]} O-O-O+ {[%clk
00:04:48]} {[%emt 00:06:08]} 19. Kc3 {[%clk 00:13:51]} {[%emt 00:00:18]} e3
{[%clk 00:03:40]} {[%emt 00:01:13]} 20. f3 {[%clk 00:13:54]} {[%emt 00:00:03]}
Rge8 {[%clk 00:02:02]} {[%emt 00:01:43]} 21. Bxf4 {[%clk 00:11:42]} {[%emt
00:02:18]} e2 {[%clk 00:02:06]} {[%emt 00:00:01]} 22. Re1 {[%clk 00:11:24]}
{[%emt 00:00:22]} exf1=Q {[%clk 00:01:19]} {[%emt 00:00:53]} 23. Rg1 {[%emt
00:00:02]} Qxe1+ 24. Rxe1 {[%clk 00:11:27]} Ba6 {[%clk 00:00:55]} {[%emt
00:00:30]} 25. Rf1 {[%emt 00:01:02]} Re4 {[%clk 00:00:56]} 26. fxe4 {[%clk
00:10:36]} Nxc4 {[%clk 00:00:57]} {[%emt 00:00:05]} 27. Rb1 {[%clk 00:10:09]}
{[%emt 00:00:32]} Nxa3 {[%clk 00:00:40]} {[%emt 00:00:23]} 28. Ra1 {[%clk
00:10:01]} {[%emt 00:00:14]} Nb5+ {[%clk 00:00:43]} {[%emt 00:00:02]} 29. Kc4
{[%clk 00:10:04]} Kb7 {[%clk 00:00:44]} {[%emt 00:00:03]} 30. Kxc5 {[%clk
00:10:02]} {[%emt 00:00:07]} Rc8+ {[%clk 00:00:48]} {[%emt 00:00:01]} 31. Kb4
{[%clk 00:09:49]} {[%emt 00:00:18]} Rxc2 {[%clk 00:00:51]} {[%emt 00:00:03]} 32.
Rd1 {[%clk 00:09:46]} {[%emt 00:00:07]} Rb2+ {[%emt 00:00:39]} 1/2-1/2

[Event "Esbjerg Efterår 2024 - Esbjergmesterskabet"]
[Site "Esbjerg, Denmark"]
[Date "2024.10.18"]
[Round "2.8"]
[White "Saravana, Vedant Kumar"]
[Black "Hansen, Simon"]
[Result "1-0"]
[TimeControl "1.-3. 20 min + 5 sek, 4.-7. 90 min + 30 sek + 15 min efter 40 træk"]
[WhiteElo "2115"]
[BlackElo "1803"]

1. e4 {[%clk 00:20:05]} {[%emt 00:00:05]} e6 {[%clk 00:20:09]} {[%emt
00:00:01]} 2. d4 {[%clk 00:20:08]} {[%emt 00:00:02]} d5 {[%clk 00:20:12]}
{[%emt 00:00:02]} 3. e5 {[%clk 00:20:12]} {[%emt 00:00:01]} c5 {[%clk
00:20:16]} {[%emt 00:00:01]} 4. c3 {[%clk 00:20:15]} {[%emt 00:00:02]} Nc6
{[%clk 00:20:20]} {[%emt 00:00:01]} 5. Nf3 {[%clk 00:20:19]} {[%emt 00:00:02]}
Nge7 {[%clk 00:20:23]} {[%emt 00:00:02]} 6. Na3 {[%clk 00:20:15]} {[%emt
00:00:08]} Bd7 {[%clk 00:20:06]} {[%emt 00:00:22]} 7. Be2 {[%clk 00:20:16]}
{[%emt 00:00:04]} cxd4 {[%clk 00:19:21]} {[%emt 00:00:50]} 8. cxd4 {[%clk
00:20:18]} {[%emt 00:00:03]} Rc8 {[%clk 00:19:20]} {[%emt 00:00:06]} 9. O-O
{[%clk 00:20:04]} {[%emt 00:00:18]} Qb6 {[%clk 00:19:13]} {[%emt 00:00:13]} 10.
Nc2 {[%clk 00:19:21]} {[%emt 00:00:48]} Nf5 {[%clk 00:17:37]} {[%emt 00:01:41]}
11. b3 {[%clk 00:18:35]} {[%emt 00:00:52]} Nb4 {[%clk 00:17:16]} {[%emt
00:00:25]} 12. Nxb4 {[%clk 00:18:34]} {[%emt 00:00:07]} Bxb4 {[%clk 00:16:49]}
{[%emt 00:00:31]} 13. Bb2 {[%clk 00:18:31]} {[%emt 00:00:07]} Bb5 {[%clk
00:16:26]} {[%emt 00:00:28]} 14. g4 {[%clk 00:16:39]} {[%emt 00:01:57]} Nh6
{[%clk 00:12:49]} {[%emt 00:03:42]} 15. a3 {[%clk 00:16:03]} {[%emt 00:00:41]}
Be7 {[%clk 00:12:41]} {[%emt 00:00:12]} 16. h3 {[%clk 00:15:10]} {[%emt
00:00:58]} Bxe2 {[%clk 00:11:29]} {[%emt 00:01:18]} 17. Qxe2 {[%clk 00:15:14]}
{[%emt 00:00:01]} Qxb3 {[%clk 00:11:08]} {[%emt 00:00:25]} 18. Rfb1 {[%clk
00:14:16]} {[%emt 00:01:03]} Rc2 {[%clk 00:10:22]} {[%emt 00:00:51]} 19. Qd1
{[%clk 00:14:20]} {[%emt 00:00:01]} Qc4 {[%clk 00:08:18]} {[%emt 00:02:09]} 20.
Ne1 {[%clk 00:08:35]} {[%emt 00:05:50]} Re2 {[%clk 00:03:23]} {[%emt 00:05:00]}
21. Rc1 {[%clk 00:08:38]} {[%emt 00:00:02]} Qb5 {[%clk 00:03:01]} {[%emt
00:00:27]} 22. Bc3 {[%clk 00:07:24]} {[%emt 00:01:19]} Re4 {[%clk 00:01:25]}
{[%emt 00:01:41]} 23. f3 {[%clk 00:03:46]} {[%emt 00:03:44]} Re3 {[%clk
00:00:41]} {[%emt 00:00:48]} 24. Kf2 {[%clk 00:03:17]} {[%emt 00:00:35]} Bg5
{[%clk 00:00:22]} {[%emt 00:00:23]} 25. Bd2 {[%clk 00:03:20]} {[%emt 00:00:01]}
Qb2 {[%clk 00:00:07]} {[%emt 00:00:21]} 26. Nc2 {[%clk 00:02:22]} {[%emt
00:01:03]} Rd3 {[%clk 00:00:07]} {[%emt 00:00:05]} 27. Rcb1 {[%clk 00:00:48]}
{[%emt 00:01:39]} Qxb1 {[%clk 00:00:09]} {[%emt 00:00:02]} 28. Qxb1 {[%clk
00:00:50]} {[%emt 00:00:04]} Rxd2+ {[%clk 00:00:12]} {[%emt 00:00:02]} 29. Ke1
{[%clk 00:00:41]} {[%emt 00:00:15]} O-O {[%clk 00:00:15]} {[%emt 00:00:02]} 30.
h4 {[%clk 00:00:26]} {[%emt 00:00:20]} Bf4 {[%clk 00:00:18]} {[%emt 00:00:02]}
31. Qb3 {[%clk 00:00:22]} {[%emt 00:00:09]} Rc8 {[%clk 00:00:20]} {[%emt
00:00:03]} 32. Ne3 {[%clk 00:00:26]} {[%emt 00:00:01]} Bxe3 {[%clk 00:00:20]}
{[%emt 00:00:04]} 33. Qxe3 {[%clk 00:00:29]} {[%emt 00:00:02]} Rcc2 {[%clk
00:00:24]} {[%emt 00:00:01]} 34. Qxd2 {[%clk 00:00:32]} {[%emt 00:00:02]} Rxd2
{[%clk 00:00:27]} {[%emt 00:00:03]} 35. Kxd2 {[%clk 00:00:36]} f6 {[%clk
00:00:29]} {[%emt 00:00:03]} 36. exf6 {[%clk 00:00:26]} {[%emt 00:00:15]} gxf6
{[%clk 00:00:33]} 37. Rb1 {[%clk 00:00:30]} {[%emt 00:00:02]} b6 {[%clk
00:00:37]} 38. Rc1 {[%clk 00:00:35]} Nf7 {[%clk 00:00:34]} {[%emt 00:00:08]} 39.
Rc8+ {[%clk 00:00:38]} {[%emt 00:00:01]} Kg7 {[%clk 00:00:37]} {[%emt
00:00:02]} 40. Rc7 {[%clk 00:00:42]} {[%emt 00:00:01]} Kg6 {[%clk 00:00:37]}
{[%emt 00:00:04]} 41. Rxa7 {[%clk 00:00:46]} {[%emt 00:00:02]} e5 {[%clk
00:00:38]} {[%emt 00:00:04]} 42. dxe5 {[%clk 00:00:49]} {[%emt 00:00:02]} Nxe5
{[%clk 00:00:41]} {[%emt 00:00:03]} 43. Ke3 {[%clk 00:00:48]} {[%emt 00:00:05]}
h5 {[%clk 00:00:42]} {[%emt 00:00:04]} 44. gxh5+ {[%clk 00:00:34]} {[%emt
00:00:18]} Kxh5 {[%clk 00:00:45]} {[%emt 00:00:03]} 45. Ra6 {[%clk 00:00:28]}
{[%emt 00:00:11]} Kxh4 {[%clk 00:00:49]} {[%emt 00:00:01]} 46. Kd4 {[%clk
00:00:24]} {[%emt 00:00:09]} Nxf3+ {[%clk 00:00:17]} {[%emt 00:00:37]} 47. Kxd5
{[%clk 00:00:25]} {[%emt 00:00:05]} f5 {[%clk 00:00:14]} {[%emt 00:00:08]} 48.
Rxb6 {[%clk 00:00:28]} {[%emt 00:00:02]} f4 {[%clk 00:00:15]} {[%emt 00:00:02]}
49. Ke4 {[%clk 00:00:21]} {[%emt 00:00:10]} Nd2+ {[%clk 00:00:07]} {[%emt
00:00:16]} 50. Kxf4 {[%clk 00:00:19]} {[%emt 00:00:06]} Kh5 {[%clk 00:00:09]}
{[%emt 00:00:04]} 51. a4 {[%clk 00:00:16]} {[%emt 00:00:08]} Nc4 {[%clk
00:00:11]} {[%emt 00:00:03]} 52. Rb4 {[%emt 00:00:17]} 1-0